Cogmind - Beta 15 *** ADVENTURER MODE // 2025.06.04 @ 21:19:08 Player: triibiis Result: Smashed by cave-in Performance ------------- Evolutions (0) 0 Regions Visited (1) 200 Robots Destroyed (8) 40 Value Destroyed (134) 134 Prototype IDs (0) 0 Alien Tech Used (0) 0 Bonus (0) 0 TOTAL SCORE: 374 Bonus ------- None Cogmind --------- Core Integrity 0/250 Matter 225/300 Energy 92/125 System Corruption 9% Temperature Cool (2) Movement Treading (240) Ox1 Location -10/Materials Parts ------- > --- POWER (1) -------- Light Ion Engine > --- PROPULSION (2) --- Light Treads Light Treads > --- UTILITY (2) ------ High-capacity Storage Unit > --- WEAPON (2) ------- Mining Laser > --- INVENTORY (20) --- Ion Engine Aluminum Leg Wheel Wheel Small Storage Unit Large Storage Unit Sensor Array Medium Laser Small Laser Welding Torch Peak State ------------ > --- POWER ------------ Light Ion Engine > --- PROPULSION ------- Light Treads Light Treads > --- UTILITY ---------- High-capacity Storage Unit Improved Terrain Scanner > --- WEAPON ----------- EM Pulse Gun Mining Laser > --- INVENTORY -------- Ion Engine Light Ion Engine Aluminum Leg Wheel Wheel Small Storage Unit Sensor Array Medium Laser Small Laser Assault Rifle [Rating: 10] Favorites ----------- Power Light Ion Engine Engine Light Ion Engine Propulsion Light Treads Treads Light Treads Utility Small Storage Unit Device Improved Terrain Scanner Storage Small Storage Unit Weapon EM Pulse Gun Energy Gun EM Pulse Gun Ballistic Gun Assault Rifle Special Weapon Mining Laser Build | -11 -10 ------- Run | Yrd Mat Slots Evolved . | . . Power . | . . Propulsion . | . . Utility . | . . Weapon . | . . Parts Attached 14 | 8 6 Power 2 | 1 1 Engine 2 | 1 1 Core . | . . Reactor . | . . Propulsion 2 | 2 . Treads 2 | 2 . Leg . | . . Wheel . | . . Hover . | . . Flight . | . . Utility 3 | 2 1 Device 1 | 1 . Storage 2 | 1 1 Processor . | . . Hackware . | . . Protection . | . . Artifact . | . . Weapon 7 | 3 4 Energy Gun 3 | 2 1 Energy Cannon . | . . Ballistic Gun 1 | . 1 Ballistic Cannon . | . . Launcher . | . . Special Weapon 3 | 1 2 Impact Weapon . | . . Slashing Weapon . | . . Piercing Weapon . | . . Special Melee Weapon . | . . Unidentified Prototypes . | . . Parts Lost 6 | . 6 Power 1 | . 1 Propulsion . | . . Utility 1 | . 1 Weapon 4 | . 4 Highest Loss Streak 4 | . 4 To Critical Strikes . | . . Average Backups 6 | 5 9 Power 1 | . 1 Propulsion 3 | 3 3 Utility . | . 1 Weapon 1 | 1 2 Tool/Special . | . . Unused Backups 8 | . 8 Power 1 | . 1 Propulsion 4 | . 4 Utility 2 | . 2 Weapon . | . . Tool/Special 1 | . 1 Average Slot Usage (%) 97 | . 97 Engine 13 | . 13 Treads 28 | . 28 Device 13 | . 13 Storage 14 | . 14 Energy Gun 11 | . 11 Ballistic Gun 4 | . 4 Special Weapon 9 | . 9 Peak Build Rating 10 | 9 10 Average Rating 6 | 6 9 On Entrance 4 | . 9 Naked Turns . | . . Heaviest Build 47 | 12 47 Greatest Support 40 | 40 40 Greatest Overweight (x) 1 | . 1 Average Overweight (x) . | . . Largest Inventory Capacity 20 | 8 20 Average Capacity 9 | 7 15 Most Carried 13 | 8 13 Average Carried 6 | 5 9 Final Capacity 20 | 8 20 Final Carried 10 | 7 10 Class Distribution -------------------- 100% | Mutant Dominant Class ---------------- Mutant | -10/Materials Resources | -11 -10 ----------- Run | Yrd Mat Matter Collected 290 | 276 14 Remotely . | . . Salvage Created 203 | 18 185 Parts 24 | . 24 Haulers Intercepted . | . . Recyclers Shooed . | . . Parts Field Recycled . | . . Retrieved Matter . | . . Parts Self-Destructed . | . . Prevented . | . . Kills | -11 -10 ------- Run | Yrd Mat Combat Hostiles Destroyed 6 | 1 5 Guns 5 | 1 4 AOE 1 | . 1 Classes Destroyed 5 | 1 4 Builder 2 | . 2 Watcher 1 | . 1 Swarmer 3 | . 3 Grunt 2 | . 2 Assembled 1 | 1 . Best Kill Streak 5 | 1 5 Combat Bots Only 3 | 1 3 Max Kills in Single Turn 1 | 1 1 Gunslinging . | . . Exploded 1 | . 1 Melee . | . . Uniques/NPCs Destroyed . | . . Combat | -11 -10 -------- Run | Yrd Mat Hostile Shots Fired 41 | 2 39 Missed 11 | . 11 Hits 30 | 2 28 Melee 2 | 2 . Projectile 28 | . 28 Damage Taken 898 | 34 864 Core 273 | . 273 Absorbed by Shields . | . . Ignored by Resistances 76 | 10 66 Core Remaining (%) 100 | 100 . Volleys Fired 35 | 8 27 Largest 2 | 2 2 Hottest 140 | 140 120 Shots Fired 56 | 14 42 Gun 43 | 12 31 Cannon . | . . Launcher . | . . Special 13 | 2 11 Kinetic 15 | . 15 Thermal 24 | 6 18 Explosive . | . . Electromagnetic 17 | 8 9 Robot Hit Streak 7 | 2 7 Robot Miss Streak 1 | 1 1 Penetration Max . | . . Secondary Targets . | . . Shots Hit Robots 22 | 4 18 Core Hits 12 | 2 10 Critical Kills . | . . Critical Parts Destroyed . | . . Critical Strikes . | . . Melee Attacks . | . . Impact . | . . Slashing . | . . Piercing . | . . Sneak Attacks . | . . Combat Hostiles . | . . Follow-up Attacks . | . . Damage Inflicted 304 | 46 258 Guns 282 | 46 236 Cannons . | . . Explosions 22 | . 22 Melee . | . . Ramming . | . . Kinetic 56 | . 56 Thermal 103 | 12 91 Explosive . | . . Electromagnetic 145 | 34 111 Impact . | . . Slashing . | . . Piercing . | . . Highest Corruption 9 | . 9 Average Corruption 7 | . 7 Corruption Purged . | . . Corruption Blocked . | . . Effects 1 | . 1 Data Loss (minor) 1 | . 1 Overload Shots . | . . Overflow Damage . | . . Projectiles . | . . Explosions . | . . Melee . | . . Knockbacks . | . . Impact . | . . Kinetic . | . . Secondary . | . . Self-Inflicted Damage . | . . Shots . | . . Rammed . | . . Targets Rammed . | . . Kicked . | . . Crushed . | . . Highest Temperature 82 | 82 40 Average Temperature 21 | 33 16 Received Heat Transfer 102 | . 102 Siege Activations . | . . Martial Activations . | . . Shielding Activations . | . . Robots Disrupted . | . . Combat Hostiles . | . . Robots Corrupted . | . . Combat Hostiles . | . . Parts Fried . | . . Impact Corruptions . | . . Robots Melted . | . . Combat Hostiles . | . . Parts Melted . | . . Heat Transferred 187 | 37 150 Parts Sabotaged . | . . Parts Stolen . | . . Parts Stripped . | . . Power Chain Reactions 1 | . 1 Alert | -11 -10 ------- Run | Yrd Mat Maximum Alert Level . | . . Low Security (%) 100 | 100 100 Level 1 . | . . Level 2 . | . . Level 3 . | . . Level 4 . | . . Level 5 . | . . High Security . | . . Max Security . | . . Peak Influence 77 | . 77 Initial . | . . Average 4 | . 18 Influence Increases 150 | . 150 Destroy 0b10 Robot/C 100 | . 100 Destroy 0b10 Robot/NC 15 | . 15 Destroy Leader 22 | . 22 Disable Machine 9 | . 9 Destroy Structure 4 | . 4 Influence Decreases 150 | . 150 Time Decay 130 | . 130 Lost Part 20 | . 20 Squads Dispatched 1 | . 1 Investigation 1 | . 1 Extermination . | . . Reinforcement . | . . Assault . | . . Garrison . | . . Intercept . | . . Searches Triggered . | . . Construction Impeded . | . . Haulers Reinforced . | . . Active Scanning Responses . | . . Cargo Convoy Interrupts . | . . Stealth | -11 -10 --------- Run | Yrd Mat Distress Signals . | . . Communications Jammed . | . . Distress Signals . | . . Times Spotted 9 | 1 8 Peak Tracking Total 3 | 1 3 Tactical Retreats . | . . Traps | -11 -10 ------- Run | Yrd Mat Traps Triggered 1 | . 1 Indirectly . | . . Trap Hack Attempts . | . . Triggered . | . . Disarmed . | . . Reprogrammed . | . . Reused . | . . Traps Extracted . | . . Installed . | . . Triggered . | . . Machines | -11 -10 ---------- Run | Yrd Mat Machines Disabled 1 | . 1 Max in Single Turn 1 | . 1 Machines Repaired . | . . Machines Dismantled . | . . Machines Sabotaged . | . . Overloaded Fab Kills . | . . Hacking | -11 -10 --------- Run | Yrd Mat Machines Accessed 1 | . 1 Terminals . | . . Fabricators . | . . Repair Stations . | . . Recycling Units 1 | . 1 Scanalyzers . | . . Garrison Access . | . . Total Hacks 7 | . 7 Successful 6 | . 6 Failed 1 | . 1 Catastrophic . | . . Database Lockouts . | . . Manual . | . . Terminals . | . . Fabricators . | . . Repair Stations . | . . Recycling Units 7 | . 7 Scanalyzers . | . . Garrison Access . | . . Terminal Hacks . | . . Fabricator Hacks . | . . Repair Station Hacks . | . . Recycling Unit Hacks 6 | . 6 Recycle Component 1 | . 1 Process 1 | . 1 Report Inventory 1 | . 1 Retrieve Matter 1 | . 1 Retrieve Components 2 | . 2 Scanalyzer . | . . Garrison Access Hacks . | . . Unauthorized Hacks . | . . Terminals . | . . Fabricators . | . . Repair Stations . | . . Recycling Units . | . . Scanalyzers . | . . Garrison Access . | . . Data Cores Recovered . | . . Used . | . . Hacking Detections 1 | . 1 Full Trace Events . | . . Feedback Events . | . . Feedback Blocked . | . . Robot Schematics Acquired . | . . Robots Built . | . . Authchips . | . . Time . | . . Total Robot Build Rating . | . . Part Schematics Acquired . | . . Parts Built . | . . Authchips . | . . Time . | . . Total Part Build Rating . | . . Parts Repaired . | . . Time . | . . Parts Recycled 1 | . 1 Recycled Matter . | . . Retrieved Matter . | . . Retrieved Components 3 | . 3 Parts Scanalyzed . | . . Part Schematics Acquired . | . . Parts Damaged . | . . Bothacking | -11 -10 ------------ Run | Yrd Mat Used RIF Installer . | . . Robots Hacked . | . . Non-combat . | . . Combat . | . . Robot Hacks Applied . | . . Relay Couplers Released . | . . Fabnet Peak Effective % . | . . Robots Rewired . | . . Allies Hacked . | . . Hacks Repelled . | . . Allies | -11 -10 -------- Run | Yrd Mat Total Allies . | . . Largest Group . | . . Highest-Rated Group . | . . Highest-Rated Ally . | . . Total Orders . | . . Ally Attacks . | . . Total Damage . | . . Kills . | . . Allies Corrupted . | . . Allies Melted . | . . Intel | -11 -10 ------- Run | Yrd Mat Active Infowar (turns) 670 | 83 587 Terrain 670 | 83 587 Robot Analysis Total . | . . Derelict Logs Recovered . | . . Drone Launches . | . . Drone Recoveries . | . . Exploration | -11 -10 ------------- Run | Yrd Mat Turns Passed 2571 | 1959 612 Spaces Moved 750 | 583 167 Core 4 | 4 . Treads 746 | 579 167 Legs . | . . Wheels . | . . Hover . | . . Flight . | . . Fastest Speed 50 | 50 160 Average Speed 171 | 159 214 Slowest Speed 240 | 160 240 Overloaded Moves . | . . Propulsion Burnouts . | . . Robots Hopped . | . . Potential Cave-ins 8 | . 8 Cave-ins Triggered 4 | . 4 Exploration Rate (%) 45 | 62 28 Regions Visited 1 Branch Regions . Pre-discovered Areas . | . . Known Exits Taken . | . . Unknown Exits Taken 1 | 1 . Scrap Searched . | . . Spaces Dug 13 | 2 11 Terrain Destroyed 16 | 2 14 Melee . | . . Projectile 13 | 2 11 AOE 3 | . 3 Terrain Rammed . | . . Walls Destroyed . | . . Machines Disabled . | . . Actions | -11 -10 --------- Run | Yrd Mat Total 1951 | 1593 358 Wait 1137 | 986 151 Move 747 | 582 165 Hop . | . . Pick Up 15 | 8 7 Fast Attach 6 | 6 . Attach 7 | 2 5 Detach 2 | 1 1 Swap 1 | . 1 Drop . | . . Fire 35 | 8 27 Melee . | . . Ram . | . . Kick . | . . Crush . | . . Escape Stasis 1 | . 1 Rewire . | . . Trap . | . . Miscellaneous . | . . Route ------- -11/Scrapyard -10/Materials (discovered 2 exits: [*Min] / [Sub]) History --------- Turn | Location | Event 2 | -11/Scrapyard | Met Revision 17 10 | -11/Scrapyard | Discovered new exit (range 15) 1476 | -11/Scrapyard | Assembled infested the area 1960 | -11/Scrapyard | Entered Materials 1961 | -10/Materials | Build established: Mutant 2311 | -10/Materials | Discovered new exit (range 15) 2443 | -10/Materials | Discovered new exit (range 15) 2540 | -10/Materials | Crushed by falling debris 2547 | -10/Materials | Crushed by falling debris 2550 | -10/Materials | Crushed by falling debris 2550 | -10/Materials | Core integrity fell below 50% 2572 | -10/Materials | Crushed by falling debris 2572 | -10/Materials | Smashed by cave-in Last Messages --------------- K-01 Serf collects debris. K-01 Serf cleans the Terminal. K-01 Serf cleans the Hadron Collector. U-05 Engineer builds a Wall. The unstable cave ceiling collapses. Crushed by falling debris. Assault Rifle destroyed. System corrupted by crushing effect (+4). Lgt. Ion Engine destroyed. The unstable cave ceiling collapses. Crushed by falling debris. Imp. Terrain Scanner destroyed. System corrupted by crushing effect (+3). The unstable cave ceiling collapses. Crushed by falling debris. Mining Laser destroyed. System corrupted by crushing effect (+2). System corrupted: Component data lost. The unstable cave ceiling collapses. Crushed by falling debris. Map ----- +----------------------------------------------------+ | ??# """ #?? #????????????????????????? | | ??+ #????????????????????????????? | | ??# #?#?#????????????????????????? | | ??###+#####+##############?????#####?????????????? | | ??#?# # """ ""???? #????????????? | | #???# """ """ "" # """ ""? ?## #????????????? | | ??### """ """ Y" # """ "????## #? ??????????? | | #??## """ """ "" # ??????# # ??????????? | | ??### """ # ?? ### # ???????????? | | ##??# # ???????# +????????????? | | ?##+############+########### #????????????? | | * # ! #? ?????? ??? | | ? + = !%= # ??"????????? | | ???# %= !!! ! #? ??????????? | | ?? # !! #? ?"? ??????? | | ??? #" ! ! ######### #???? ?????? | | ?+### !%| # # #+####### | | ? ?## %=!! | | ???##=[*%[ < | | ? ?##*%[== | | ????# =###### ##### #######+####### " | | #?#?# ?????# #???# " "!" ## #????? ?" | | ????# ?? ?# #####"" "!""## """" #??#????? | | ????#% ?????# #???########## """" = #?#?????? | | ????# ?? ??# #????######### """" #???????? | | ???? ?????# ##????#@ # # #??#????? | | ????###???? # #???<####### # ""T"" #???????? | | ????????????# #??????????### """"" #?#??#??? | | ?????????? # #????????????# #???????? | | ????????????# #????#???????###########???????? | | ????????????# ???????#????#??#???? ? ????????? | | ????????????#?????????#??#???#?#?????????????????? | | ????????????????????????????#????????????????????? | | ??????????????????? ??????? ?????????????????????? | | ??????????????????????????? ????? ??????????????? | | ??????????????????????????? ?????????? ??????????? | | ?????????????????????????#????#??#???????????????? | | ?????????????????????? ??????????????? ??????????? | | ????????????????????????????????#????????????????? | | ????????????????????????##??#????????????????????? | | ???????????????????????????#?????????????????????? | | ?????????????????????????????????????????????????? | | ?????????????????????????????????????????????????? | | ?????????????????????????????????????????????????? | | ?????????????????????????????????????????????????? | | ?????????????????????????????????????????????????? | | ?????????????????????????????????????????????????? | | ?????????????????????????????????????????????????? | | ?????????????????????????????????????????????????? | | ?????????????????????????????????????????????????? | +----------------------------------------------------+ Best States ------------- Heat Dissipation 25 Energy Generation 10 Energy Capacity 125 Matter Stores 300 Matter Capacity 300 Sight Range 16 Terrain Scan Range 16 Terrain Scan Density 10 Resistance: KI 20 Resistance: TH 20 Resistance: EX 20 Resistance: EM 20 Resistance: I 20 Resistance: S 20 Resistance: P 20 Evasion (%) 40 Recoil Reduction 2 Offensive Hacking 10 Item Schematics ----------------- None Robot Schematics ------------------ None Fabricated ------------ Nothing Repaired ---------- Nothing Alien Tech Used ----------------- None Achievements -------------- Curiosity Killed The Cat Challenges ------------ None Game ------ Seed DisruptionLongswordField Manual? 0 Play Time 00:09:55 Cumulative 4.7 hours Start 2025.06.04 @ 21:06:59 End 2025.06.04 @ 21:19:08 Sessions 1 Manual Loads 0 Difficulty Adventurer Special Mode None Game No. 10 Rogue 0 Adventurer 10 Explorer 0 Win Type - Total 0 Types 0/0/0/0/0/0/0/0/0/0 Lore% 1 Gallery% 8 Achievement% 11 Wizard Run 0 Options --------- Layout 1 ASCII 0 Keyboard 0 Movement Arrows Keybinds 0 Fullscreen 1 Font 36/Smallcaps Map View 50x43 Zoom Use 0% Tactical HUD 0 Map Filters NONE Filters NONE Steam 1 RUN: 60142c4f-c732-4073-9389-ad8b2fb336fa